Cogmind - Beta 16.1 --- EXPLORER MODE // 2026.06.21 @ 10:01:00 Player: 0xKSL Result: Destroyed by Y-45 Defender with Beam Rifle Performance ------------- Evolutions (0) 0 Regions Visited (3) 600 Robots Destroyed (8) 40 Value Destroyed (140) 140 Prototype IDs (0) 0 Alien Tech Used (0) 0 Bonus (0) 0 TOTAL SCORE: 780 Bonus ------- None Cogmind --------- Core Integrity 0/250 Matter 254/300 Energy 121/125 System Corruption 0% Temperature Cool (11) Movement Walking (120) Location -8/Recycling Parts ------- > --- POWER (1) -------- Light Ion Engine > --- PROPULSION (2) --- Aluminum Leg Aluminum Leg > --- UTILITY (3) ------ Medium Storage Unit Core Shielding > --- WEAPON (2) ------- (None) > --- INVENTORY (10) --- Structural Scanner ECM Suite Phase Shifter Scrap Shield Peak State ------------ > --- POWER ------------ Ion Engine > --- PROPULSION ------- Light Treads Light Treads > --- UTILITY ---------- Medium Storage Unit Core Shielding Utility Shielding > --- WEAPON ----------- Light Assault Rifle Battle Rifle > --- INVENTORY -------- Light Ion Engine Aluminum Leg Aluminum Leg Structural Scanner ECM Suite Phase Shifter Scrap Shield EM Pulse Gun Medium Laser [Rating: 10] Favorites ----------- Power Ion Engine Engine Ion Engine Propulsion Light Treads Treads Light Treads Leg Aluminum Leg Utility Medium Storage Unit Storage Medium Storage Unit Protection Utility Shielding Weapon Light Assault Rifle Energy Gun Medium Laser Ballistic Gun Light Assault Rifle Build | -11 -10 -10 -8 ------- Run | Yrd Mat Sub Rec Slots Evolved 1 | . 1 . . Power . | . . . . Propulsion . | . . . . Utility 1 | . 1 . . Weapon . | . . . . Parts Attached 15 | 8 3 4 . Power 2 | 1 . 1 . Engine 2 | 1 . 1 . Core . | . . . . Reactor . | . . . . Propulsion 4 | 3 . 1 . Treads 2 | 2 . . . Leg 2 | 1 . 1 . Wheel . | . . . . Hover . | . . . . Flight . | . . . . Utility 3 | 2 1 . . Device . | . . . . Storage 1 | 1 . . . Processor . | . . . . Hackware . | . . . . Protection 2 | 1 1 . . Artifact . | . . . . Weapon 6 | 2 2 2 . Energy Gun 3 | 2 . 1 . Energy Cannon . | . . . . Ballistic Gun 3 | . 2 1 . Ballistic Cannon . | . . . . Launcher . | . . . . Special Weapon . | . . . . Impact Weapon . | . . . . Slashing Weapon . | . . . . Piercing Weapon . | . . . . Special Melee Weapon . | . . . . Unidentified Prototypes . | . . . . Parts Lost 8 | . . 8 . Power 1 | . . 1 . Propulsion 2 | . . 2 . Utility 1 | . . 1 . Weapon 4 | . . 4 . Highest Loss Streak 5 | . . 5 . To Critical Strikes 2 | . . 2 . Average Backups 7 | 5 8 8 4 Power . | . 1 . . Propulsion 1 | 1 2 1 . Utility 2 | 2 2 3 4 Weapon 2 | . 3 2 . Tool/Special . | . . . . Unused Backups 6 | . . 2 4 Power . | . . . . Propulsion . | . . . . Utility 5 | . . 1 4 Weapon 1 | . . 1 . Tool/Special . | . . . . Average Slot Usage (%) 91 | . 100 90 62 Engine 11 | . 12 10 12 Treads 19 | . 25 18 . Leg 4 | . . 3 25 Storage 12 | . 12 12 12 Protection 23 | . 25 24 12 Energy Gun 6 | . 12 1 . Ballistic Gun 14 | . 12 19 . Peak Build Rating 10 | 7 9 10 6 Average Rating 7 | 5 8 8 6 On Entrance 5 | . 7 9 6 Avg Prop Armor Cover (%) . | . . . . Naked Turns . | . . . . Heaviest Build 20 | 19 20 20 14 Greatest Support 40 | 40 40 40 20 Greatest Overweight (x) 1 | 1 . . . Average Overweight (x) . | . . . . Largest Inventory Capacity 10 | 10 10 10 10 Average Capacity 9 | 8 10 10 10 Most Carried 10 | 7 10 10 5 Average Carried 8 | 5 8 9 5 Final Capacity 10 | 10 10 10 10 Final Carried 10 | 7 10 5 5 Class Distribution -------------------- 100% | Hacker-Mutant Dominant Class ---------------- Hacker-Mutant | -10/Materials Hacker-Mutant | -10/Subcaves Hacker-Mutant | -8/Recycling Resources | -11 -10 -10 -8 ----------- Run | Yrd Mat Sub Rec Matter Collected 363 | 180 120 63 . Remotely . | . . . . Salvage Created 166 | . 22 144 . Parts 16 | . 3 13 . Haulers Intercepted . | . . . . Recyclers Shooed . | . . . . Parts Field Recycled . | . . . . Retrieved Matter . | . . . . Parts Self-Destructed . | . . . . Prevented . | . . . . Parts Restored . | . . . . Kills | -11 -10 -10 -8 ------- Run | Yrd Mat Sub Rec Combat Hostiles Destroyed 8 | . 2 6 . Guns 8 | . 2 6 . Classes Destroyed 2 | . 1 1 . Swarmer 6 | . 2 4 . Subdweller 2 | . . 2 . Best Kill Streak 4 | . 2 4 . Combat Bots Only 4 | . 2 4 . Max Kills in Single Turn 1 | . 1 1 . Gunslinging . | . . . . Exploded . | . . . . Melee . | . . . . Uniques/NPCs Destroyed . | . . . . Combat | -11 -10 -10 -8 -------- Run | Yrd Mat Sub Rec Hostile Shots Fired 151 | . 11 118 22 Missed 54 | . 4 40 10 Hits 97 | . 7 78 12 Projectile 97 | . 7 78 12 AOE 9 | . . 9 . Critical Strikes 5 | . . 5 . Actively Blocked 1 | . . 1 . Damage Taken 1308 | . 34 1192 82 Core 251 | . 4 230 17 Absorbed by Shields . | . . . . Redirected to Shielding 63 | . . 60 3 Ignored by Resistances 735 | . 22 664 49 Core Remaining (%) 100 | 100 . . . Volleys Fired 37 | . 4 33 . Largest 2 | . 2 2 . Hottest 90 | . 90 90 . Shots Fired 67 | . 8 59 . Gun 67 | . 8 59 . Cannon . | . . . . Launcher . | . . . . Special . | . . . . Kinetic 49 | . 4 45 . Thermal 11 | . 4 7 . Explosive . | . . . . Electromagnetic 7 | . . 7 . Robot Hit Streak 33 | . 4 33 . Robot Miss Streak 2 | . 1 2 . Penetration Max . | . . . . Secondary Targets 1 | . . 1 . Max Gunslinging Chain 1 | . . 1 . Shots Hit Robots 57 | . 5 52 . Core Hits 17 | . 3 14 . Critical Kills . | . . . . Critical Parts Destroyed . | . . . . Critical Strikes 2 | . 1 1 . Burn 2 | . 1 1 . Melee Attacks . | . . . . Impact . | . . . . Slashing . | . . . . Piercing . | . . . . Sneak Attacks . | . . . . Combat Hostiles . | . . . . Follow-up Attacks . | . . . . Damage Inflicted 543 | . 50 493 . Guns 543 | . 50 493 . Cannons . | . . . . Explosions . | . . . . Melee . | . . . . Ramming . | . . . . Kinetic 423 | . 24 399 . Thermal 76 | . 26 50 . Explosive . | . . . . Electromagnetic 44 | . . 44 . Impact . | . . . . Slashing . | . . . . Piercing . | . . . . Highest Corruption . | . . . . Average Corruption . | . . . . Corruption Purged . | . . . . Corruption Blocked . | . . . . Overload Shots . | . . . . Overflow Damage . | . . . . Projectiles . | . . . . Explosions . | . . . . Melee . | . . . . Knockbacks . | . . . . Impact . | . . . . Kinetic . | . . . . Secondary . | . . . . Self-Inflicted Damage . | . . . . Shots . | . . . . Rammed . | . . . . Targets Rammed . | . . . . Kicked . | . . . . Crushed . | . . . . Highest Temperature 60 | . 60 . . Average Temperature 31 | . 31 . . Received Heat Transfer 273 | . . 228 45 Siege Activations . | . . . . Martial Activations . | . . . . Shielding Activations . | . . . . Robots Disrupted . | . . . . Combat Hostiles . | . . . . Robots Corrupted . | . . . . Combat Hostiles . | . . . . Parts Fried . | . . . . Impact Corruptions . | . . . . Robots Melted . | . . . . Combat Hostiles . | . . . . Parts Melted 1 | . 1 . . Heat Transferred 370 | . 148 222 . Parts Sabotaged . | . . . . Parts Stolen . | . . . . Parts Stripped . | . . . . Power Chain Reactions . | . . . . Alert | -11 -10 -10 -8 ------- Run | Yrd Mat Sub Rec Maximum Alert Level . | . . . . Low Security (%) 100 | 100 100 . 100 Level 1 . | . . . . Level 2 . | . . . . Level 3 . | . . . . Level 4 . | . . . . Level 5 . | . . . . High Security . | . . . . Max Security . | . . . . Peak Influence 80 | . 80 . . Initial . | . . . . Average 8 | . 12 . . Influence Increases 205 | . 80 125 . Destroy 0b10 Robot/C 120 | . 40 80 . Destroy Leader 10 | . 10 . . Lose Combat Pursuer 75 | . 30 45 . Influence Decreases 205 | . 80 125 . Time Decay 205 | . 80 125 . Squads Dispatched . | . . . . Investigation . | . . . . Extermination . | . . . . Reinforcement . | . . . . Assault . | . . . . Garrison . | . . . . Intercept . | . . . . Searches Triggered . | . . . . Construction Impeded . | . . . . Haulers Reinforced . | . . . . Active Scanning Responses . | . . . . Cargo Convoy Interrupts . | . . . . Stealth | -11 -10 -10 -8 --------- Run | Yrd Mat Sub Rec Distress Signals . | . . . . Communications Jammed . | . . . . Distress Signals . | . . . . Times Spotted 22 | . 4 14 4 Peak Tracking Total 8 | . 2 8 4 Tactical Retreats 3 | . 1 2 . Traps | -11 -10 -10 -8 ------- Run | Yrd Mat Sub Rec Traps Triggered 1 | . . 1 . Indirectly . | . . . . Trap Hack Attempts . | . . . . Triggered . | . . . . Disarmed . | . . . . Reprogrammed . | . . . . Reused . | . . . . Traps Extracted . | . . . . Installed . | . . . . Triggered . | . . . . Machines | -11 -10 -10 -8 ---------- Run | Yrd Mat Sub Rec Machines Disabled . | . . . . Max in Single Turn . | . . . . Machines Repaired . | . . . . Machines Dismantled . | . . . . Machines Sabotaged . | . . . . Overloaded Fab Kills . | . . . . Hacking | -11 -10 -10 -8 --------- Run | Yrd Mat Sub Rec Machines Accessed 1 | . 1 . . Terminals 1 | . 1 . . Fabricators . | . . . . Repair Stations . | . . . . Recycling Units . | . . . . Scanalyzers . | . . . . Garrison Access . | . . . . Total Hacks 1 | . 1 . . Successful 1 | . 1 . . Failed . | . . . . Catastrophic . | . . . . Database Lockouts . | . . . . Manual . | . . . . Terminals 1 | . 1 . . Fabricators . | . . . . Repair Stations . | . . . . Recycling Units . | . . . . Scanalyzers . | . . . . Garrison Access . | . . . . Terminal Hacks 1 | . 1 . . Maintenance Status 1 | . 1 . . Fabricator Hacks . | . . . . Repair Station Hacks . | . . . . Recycling Unit Hacks . | . . . . Scanalyzer . | . . . . Garrison Access Hacks . | . . . . Unauthorized Hacks . | . . . . Terminals . | . . . . Fabricators . | . . . . Repair Stations . | . . . . Recycling Units . | . . . . Scanalyzers . | . . . . Garrison Access . | . . . . Data Cores Recovered . | . . . . Used . | . . . . Hacking Detections 1 | . 1 . . Full Trace Events . | . . . . Feedback Events . | . . . . Feedback Blocked . | . . . . Robot Schematics Acquired . | . . . . Robots Built . | . . . . Authchips . | . . . . Time . | . . . . Total Robot Build Rating . | . . . . Part Schematics Acquired . | . . . . Parts Built . | . . . . Authchips . | . . . . Time . | . . . . Total Part Build Rating . | . . . . Part Studies Acquired . | . . . . Parts Repaired . | . . . . Time . | . . . . Parts Recycled . | . . . . Recycled Matter . | . . . . Retrieved Matter . | . . . . Retrieved Components . | . . . . Parts Scanalyzed . | . . . . Part Schematics Acquired . | . . . . Parts Damaged . | . . . . Bothacking | -11 -10 -10 -8 ------------ Run | Yrd Mat Sub Rec Used RIF Installer . | . . . . Robots Hacked . | . . . . Non-combat . | . . . . Combat . | . . . . Robot Hacks Applied . | . . . . Relay Couplers Released . | . . . . Fabnet Peak Effective % . | . . . . Robots Rewired . | . . . . Allies Hacked . | . . . . Hacks Repelled . | . . . . Allies | -11 -10 -10 -8 -------- Run | Yrd Mat Sub Rec Total Allies . | . . . . Largest Group . | . . . . Highest-Rated Group . | . . . . Highest-Rated Ally . | . . . . Total Orders . | . . . . Ally Attacks . | . . . . Total Damage . | . . . . Kills . | . . . . Allies Corrupted . | . . . . Allies Melted . | . . . . Intel | -11 -10 -10 -8 ------- Run | Yrd Mat Sub Rec Active Infowar (turns) . | . . . . Robot Analysis Total . | . . . . Derelict Logs Recovered 1 | . . 1 . Drone Launches . | . . . . Drone Recoveries . | . . . . Exploration | -11 -10 -10 -8 ------------- Run | Yrd Mat Sub Rec Turns Passed 911 | 132 335 380 64 Spaces Moved 515 | 85 198 184 48 Core 19 | 19 . . . Treads 390 | 52 198 140 . Legs 106 | 14 . 44 48 Wheels . | . . . . Hover . | . . . . Flight . | . . . . Fastest Speed 50 | 50 160 120 120 Average Speed 148 | 131 160 150 120 Slowest Speed 160 | 160 160 160 120 Overloaded Moves . | . . . . Propulsion Burnouts . | . . . . Robots Hopped . | . . . . Potential Cave-ins 1 | . . 1 . Cave-ins Triggered 1 | . . 1 . Exploration Rate (%) 13 | 4 26 9 13 Regions Visited 3 Branch Regions 2 Pre-discovered Areas . | . . . . Known Exits Taken 3 | 1 1 1 . Unknown Exits Taken . | . . . . Scrap Searched . | . . . . Spaces Dug . | . . . . Terrain Destroyed . | . . . . Melee . | . . . . Projectile . | . . . . AOE . | . . . . Terrain Rammed . | . . . . Walls Destroyed . | . . . . Machines Disabled . | . . . . Actions | -11 -10 -10 -8 --------- Run | Yrd Mat Sub Rec Total 603 | 105 208 235 55 Wait 14 | . . 7 7 Move 511 | 84 197 182 48 Hop . | . . . . Pick Up 18 | 12 4 2 . Fast Attach 2 | 2 . . . Attach 12 | 6 1 5 . Detach 1 | 1 . . . Swap 3 | . 2 1 . Drop 4 | . . 4 . Fire 37 | . 4 33 . Melee . | . . . . Ram . | . . . . Kick . | . . . . Crush . | . . . . Escape Stasis 1 | . . 1 . Rewire . | . . . . Trap . | . . . . Miscellaneous . | . . . . Route ------- -11/Scrapyard -10/Materials (discovered 2 exits: *Mat / *Sub) -10/Subcaves -8/Recycling History --------- Turn | Location | Event 36 | -11/Scrapyard | Identified exit to Materials 36 | -11/Scrapyard | Discovered exit to Materials (range 15) 133 | -11/Scrapyard | Entered Materials 133 | -10/Materials | Evolved 1 slot: Utility x1 316 | -10/Materials | Build established: Hacker-Mutant 365 | -10/Materials | Identified exit to Materials 365 | -10/Materials | Discovered exit to Materials (range 16) 441 | -10/Materials | Identified exit to Subcaves 441 | -10/Materials | Discovered exit to Subcaves (range 15) 468 | -10/Materials | Entered Subcaves 473 | -10/Subcaves | Learned location of 1 exit from Materials 553 | -10/Subcaves | Identified exit to Recycling 553 | -10/Subcaves | Discovered exit to Recycling (range 12) 723 | -10/Subcaves | Ambushed by swarm of Subdwellers 764 | -10/Subcaves | Core integrity fell below 50% 793 | -10/Subcaves | Lost 5 parts (1p2n2w) 814 | -10/Subcaves | Crushed by falling debris 834 | -10/Subcaves | Core integrity fell below 20% 845 | -10/Subcaves | Lost 3 parts (1u2w) 848 | -10/Subcaves | Entered Recycling 849 | -8/Recycling | Met a Zionite searching for Scraptown 912 | -8/Recycling | Destroyed by Y-45 Defender with Beam Rifle Last Messages --------------- 00797_ Critical hit (Destroy). 00797_ Med. Laser destroyed. 00802_ 4Q-W0A(R) misfires. 00814_ The unstable cave ceiling collapses. 00814_ Crushed by falling debris. 00814_ Utility Shielding destroyed. 00844_ Acquired 8 matter. 00845_ Acquired 3 matter. 00846_ Machine disabled. LOCATION=RECYCLING GOAL=ESCAPE 00849_ LD-2KM(z): "You there! You wouldn't happen to know where Scraptown is, do you?" 00850_ LD-2KM(z): "I've heard great things about that place, but almost no one seems to know where to find it, only that you access it somewhere from Recycling here." 00851_ LD-2KM(z): "Anyway I've been here searching too long already, time to slink back to the caves before I'm caught. You'd best do the same." 00865_ Connecting with Recycling Unit... 00888_ G-47 Trooper springs to life. 00889_ Y-45 Defender springs to life. 00889_ Slug penetrates Wall. Map ----- +----------------------------------------------------+ | ?????????????????????????????????????????????????? | | ?????????????????????????????????????????????????? | | ?????????????????????????????????????????????????? | | ?????????????????????????????????????????????????? | | ?????????????????????????????????????????????????? | | ?????????????????????????????????????????????????? | | ?????????????????????????????????????????????????? | | ?????????????????????????????????????????????????? | | ?????????????????????????????????????????????????? | | ?????????????????????????????????????????????????? | | ?????????????????????????????????????????????????? | | ?????????????????????????????????????????????????? | | ?????????????????????????????????????????????????? | | ?????????????????????????????????????????????????? | | ?????????????????????????????????????????????????? | | ?????????????????????????????????????????????????? | | ?????????????????????????????????????????????????? | | ?????????????????????????????????????????????????? | | ?????????????????????????????????????????????????? | | ?????????????????????????????????????????????????? | | ?????????????????????????????????????????????????? | | ?????????????????????????????????????? ????????? | | ?????????????????????????????????????? ???????? | | ?????????????????????????##########??# #???????? | | ?????????????????#"Y"#####! #??# #???????? | | ?????????? @! #??# #???????? | | ????????????????# ##### ! #??# ???????? | | ?????????????????????????# ! #??# #???????? | | ?????????????????????????# ! #??# #???????? | | ?????????????????????????# ! ! #??# #???????? | | ?????????????????????????# #??# #???????? | | ?????????????????????????#! ! ! #??# #???????? | | ????????????????# ???????#!! !ggY #?## ##??????? | | ????????????????# ##########/##### #??????? | | ????????????????# #??????? | | ????????????????+ +??????? | | ????????????????# #??????? | | ????????????????############/######## #??????? | | ?????????????????????????? ??????## ##??????? | | ????????????????????????? ! ???????# #???????? | | ???????????????????????? ??????# #???????? | | ???????????????????????!/ ??????# #???????? | | ?????????????????????? *?????# #???????? | | ????????????????????? !! ! !?????# ###?????? | | ???????????????????? ????# ""#?????? | | ????????????????????#############????# Y"#?????? | | ?????????????????????????????????????# ""#?????? | | ?????????????????????????????????????# ###?????? | | ?????????????????????????????????????# #???????? | | ?????????????????????????????????????# #???????? | +----------------------------------------------------+ Best States ------------- Heat Dissipation 25 Energy Generation 10 Energy Capacity 250 Matter Stores 300 Matter Capacity 300 Sight Range 16 Terrain Scan Density 10 Resistance: KI 35 Resistance: TH 35 Resistance: EX 35 Resistance: EM 35 Resistance: I 35 Resistance: S 35 Resistance: P 35 Core Shielding 20 Utility Shielding 33 Evasion (%) 55 Recoil Reduction 2 Offensive Hacking 20 Item Schematics ----------------- None Robot Schematics ------------------ None Fabricated ------------ Nothing Repaired ---------- Nothing Studied --------- None Alien Tech Used ----------------- None Achievements -------------- None Challenges ------------ None Game ------ Seed LegRingBeam Manual? 0 Play Time 00:10:46 Cumulative 5.3 hours Start 2026.06.21 @ 09:45:26 End 2026.06.21 @ 10:01:00 Sessions 1 Manual Loads 0 Difficulty Explorer Special Mode None Game No. 7 Rogue 0 Adventurer 0 Explorer 7 Win Type - Total 0 Types 0/0/0/0/0/0/0/0/0/0 Lore% 8 Gallery% 6 Achievement% 9 Wizard Run 0 Options --------- Layout 0 ASCII 1 Keyboard 1 Movement Vi Keybinds 0 Fullscreen 2 Font 20/Terminus Map View 96x60 Zoom Use 0% Tactical HUD 1 Map Filters NONE Filters NONE Steam 1 RUN: 14e87cc0-6162-4a9d-81ac-a05a2ae90319